Cogmind - Beta 12 X4 @@@ ROGUE MODE // 2023.01.08 @ 17:54:55 Player: Decinym Result: Core destroyed Performance ------------- Evolutions (4) 2000 Regions Visited (12) 2400 Robots Destroyed (190) 950 Value Destroyed (6191) 6191 Prototype IDs (50) 1000 Alien Tech Used (0) 0 Bonus (2700) 2700 TOTAL SCORE: 15241 Bonus ------- High Alert Combat Kills 968 Follower Combat Kills 813 Entered Garrisons 400 Used RIF Installer 1000 Aligned with FarCom 300 Friendly Fire -781 Cogmind --------- Core Integrity 0/850 Matter 218/300 Energy 150/150 System Corruption 14% Temperature Critical (520) Movement Treading (250) Ox1 Location -6/Garrison Parts ------- > --- POWER (2) -------- Light Angular Momentum Engine > --- PROPULSION (4) --- Armored Heavy Treads Carbon-fiber Leg VTOL Module > --- UTILITY (7) ------ Scrap Engine High-capacity Storage Unit Experimental Core Analyzer Relay Coupler [Swarmer] (5) Relay Coupler [Grunt] (23) Splice Drone Bay (0/6) > --- WEAPON (2) ------- Compact Ion Cannon Compact Ion Cannon > --- INVENTORY (20) --- Experimental Energy Well (600) Advanced Salvage Targeting Computer Advanced Transmission Jammer Ghost Barrier Relay Coupler [NC] (30) Relay Coupler [NC] (31) Relay Coupler [NC] (25) Relay Coupler [Brawler] (33) Relay Coupler [Sentry] (23) Relay Coupler [Demolisher] (20) Relay Coupler [Heavy] (12) Compact Ion Cannon Compact Ion Cannon Compact Ion Cannon Advanced EMP Blaster ME-RLN's Wand Improved Plasma Cutter Peak State ------------ > --- POWER ------------ Light Angular Momentum Engine Light Fission Core > --- PROPULSION ------- Armored Heavy Treads Carbon-fiber Leg VTOL Module > --- UTILITY ---------- Scrap Engine High-capacity Storage Unit Experimental Core Analyzer Relay Coupler [Swarmer] Relay Coupler [Grunt] Splice Drone Bay > --- WEAPON ----------- Compact Ion Cannon ME-RLN's Wand > --- INVENTORY -------- Experimental Energy Well Advanced Salvage Targeting Computer Advanced Transmission Jammer Ghost Barrier Relay Coupler [NC] Relay Coupler [NC] Relay Coupler [NC] Relay Coupler [Brawler] Relay Coupler [Sentry] Relay Coupler [Demolisher] Relay Coupler [Heavy] Compact Ion Cannon Compact Ion Cannon Compact Ion Cannon Compact Ion Cannon Advanced EMP Blaster Improved Plasma Cutter [Rating: 95] Favorites ----------- Power Reinforced Fission Core Engine Light Ion Engine Power Core Reinforced Fission Core Reactor Cooled Antimatter Reactor Propulsion Light Treads Treads Light Treads Leg Makeshift Leg Wheel Wheel Hover Unit Combat Antigrav System Flight Unit VTOL Module Utility High-capacity Storage Unit Device Experimental Heat Sink Storage High-capacity Storage Unit Processor Experimental Targeting Computer Hackware System Mapper Protection Medium Reactive Plating Weapon Compact Ion Cannon Energy Gun Precision Beam Rifle Energy Cannon Compact Ion Cannon Ballistic Gun Enhanced Autogun Launcher Advanced EMP Blaster Special Weapon ME-RLN's Wand Slashing Weapon Mining Claw Build | -11 -10 -10 -9 -9 -9 -8 -8 -8 -8 -8 -6 -6 ------- Run | Scr Mat Min Mat Min Exi Min Mat Sto Gar Rec Fac Gar Slots Evolved 8 | . . . 2 . . . 2 . . . 4 . Power 1 | . . . . . . . . . . . 1 . Propulsion 2 | . . . . . . . 1 . . . 1 . Utility 5 | . . . 2 . . . 1 . . . 2 . Weapon . | . . . . . . . . . . . . . Parts Attached 223 | . 7 17 20 10 35 24 19 26 22 3 17 23 Power 18 | . . 3 2 2 2 3 1 . 1 . 2 2 Engine 6 | . . 3 1 . . . . . . . 1 1 Core 11 | . . . 1 2 2 2 1 . 1 . 1 1 Reactor 1 | . . . . . . 1 . . . . . . Propulsion 54 | . 4 6 6 1 8 2 5 4 7 . 4 7 Treads 23 | . 2 . 2 1 5 2 2 . 6 . 2 1 Leg 18 | . . 2 2 . 2 . 3 3 1 . 2 3 Wheel 8 | . 2 4 2 . . . . . . . . . Hover 1 | . . . . . 1 . . . . . . . Flight 4 | . . . . . . . . 1 . . . 3 Utility 64 | . 2 1 2 3 10 15 5 5 9 1 7 4 Device 27 | . . . 2 1 6 7 2 2 4 . 1 2 Storage 7 | . 1 . . . 1 3 2 . . . . . Processor 5 | . 1 1 . . . 1 . 1 . . 1 . Hackware 5 | . . . . . . . . . . 1 2 2 Protection 20 | . . . . 2 3 4 1 2 5 . 3 . Artifact . | . . . . . . . . . . . . . Weapon 87 | . 1 7 10 4 15 4 8 17 5 2 4 10 Energy Gun 20 | . . 2 6 . . . 5 7 . . . . Energy Cannon 26 | . . . 2 1 7 3 . 2 2 1 2 6 Ballistic Gun 19 | . 1 3 1 1 5 . . 6 2 . . . Ballistic Cannon . | . . . . . . . . . . . . . Launcher 9 | . . 2 . 1 . . 1 1 1 1 1 1 Special Weapon 6 | . . . . . 1 1 . . . . 1 3 Impact Weapon . | . . . . . . . . . . . . . Slashing Weapon 7 | . . . 1 1 2 . 2 1 . . . . Piercing Weapon . | . . . . . . . . . . . . . Special Melee Weapon . | . . . . . . . . . . . . . Unidentified Prototypes 26 | . . . 3 1 4 6 4 6 . 1 1 . Corrupted Parts 4 | . . . . . . . . . . . . 4 System Corruption 14 | . . . . . . . . . . . . 14 Parts Lost 54 | . . 7 . 5 15 1 1 1 2 . 9 13 Power 6 | . . . . . 2 . . . . . 1 3 Propulsion 18 | . . 4 . 1 4 . . . . . 4 5 Utility 19 | . . . . 3 5 . . 1 2 . 4 4 Weapon 11 | . . 3 . 1 4 1 1 . . . . 1 Highest Loss Streak 13 | . . 2 . 5 13 1 1 1 1 . 6 6 To Critical Strikes 7 | . . . . . 7 . . . . . . . Average Slot Usage (%) 91 | . 86 88 96 88 81 98 98 98 99 99 90 76 Engine 2 | . 14 14 . . . . . . . . . 4 Core 8 | . . . 10 10 11 11 9 9 8 9 10 5 Treads 14 | . 6 . 2 22 19 20 22 . 15 27 20 . Leg 6 | . 9 8 7 . 2 1 4 26 11 . 1 8 Wheel 2 | . 12 16 11 . . . . . . . . . Device 9 | . . . 19 9 12 11 9 9 10 9 7 10 Storage 11 | . 14 14 11 11 14 11 16 10 9 9 6 6 Processor 8 | . 1 6 11 4 . 11 9 16 12 9 13 8 Hackware 1 | . . . . . . . . . . 8 10 6 Protection 7 | . . . . 7 8 10 8 7 12 9 4 1 Energy Gun 1 | . 4 2 13 . . . 10 6 . . . . Energy Cannon 8 | . . . 1 13 7 19 5 1 6 17 12 10 Ballistic Gun 7 | . 23 24 5 5 5 2 . 10 11 . . . Naked Turns . | . . . . . . . . . . . . . Heaviest Build 271 | 12 48 48 60 60 271 231 80 62 98 98 105 83 Greatest Support 80 | 20 40 20 40 40 40 40 70 70 67 60 80 45 Greatest Overweight (x) 25 | . 2 4 2 1 6 5 1 . 2 1 4 25 Average Overweight (x) 1 | . 1 2 1 1 1 1 . . . 1 1 3 Largest Inventory Capacity 35 | 8 20 20 20 20 35 35 20 20 20 20 20 20 Average Capacity 20 | 8 15 20 20 20 24 21 20 20 20 20 20 20 Most Carried 20 | 5 15 20 20 20 20 20 20 20 20 20 20 20 Average Carried 18 | 5 10 17 19 18 15 19 19 19 19 20 18 16 Final Capacity 20 | 8 20 20 20 20 20 20 20 20 20 20 20 20 Final Carried 20 | 4 15 20 20 16 20 20 20 20 20 20 17 17 Scrap Engine Consumption 2 | . . . . . . . . . . . . 2 Class Distribution -------------------- 63% | Scavenger-Mutant 21% | Mutant 7% | Hauler-Mutant 6% | Bothacker-Mutant Dominant Class ---------------- Mutant | -10/Materials Scavenger-Mutant | -10/Mines Mutant | -9/Materials Mutant | -9/Mines Mutant | -9/Exiles Scavenger-Mutant | -8/Mines Scavenger-Mutant | -8/Materials Scavenger-Mutant | -8/Storage Scavenger-Mutant | -8/Garrison Scavenger-Mutant | -8/Recycling Scavenger-Mutant | -6/Factory Bothacker-Mutant | -6/Garrison Resources | -11 -10 -10 -9 -9 -9 -8 -8 -8 -8 -8 -6 -6 ----------- Run | Scr Mat Min Mat Min Exi Min Mat Sto Gar Rec Fac Gar Matter Collected 4587 | 195 159 361 206 170 1000 449 212 520 874 30 183 228 Remotely . | . . . . . . . . . . . . . Salvage Created 8157 | . 235 426 339 204 564 754 697 1737 1461 9 1022 709 Parts 445 | . 14 56 15 18 72 33 31 76 79 1 33 17 Haulers Intercepted 14 | . 1 . 3 . . . 4 5 . . 1 . Recyclers Shooed 4 | . . . . . . 1 . 3 . . . . Parts Field Recycled . | . . . . . . . . . . . . . Retrieved Matter . | . . . . . . . . . . . . . Parts Self-Destructed . | . . . . . . . . . . . . . Prevented . | . . . . . . . . . . . . . Kills | -11 -10 -10 -9 -9 -9 -8 -8 -8 -8 -8 -6 -6 ------- Run | Scr Mat Min Mat Min Exi Min Mat Sto Gar Rec Fac Gar Combat Hostiles Destroyed 141 | . 5 19 2 10 5 7 15 24 25 1 15 13 Melee 1 | . . . . . 1 . . . . . . . Guns 75 | . 5 15 2 5 1 1 10 18 18 . . . Cannons 37 | . . . . 3 1 6 5 . 4 1 10 7 AOE 21 | . . 4 . 2 2 . . 6 1 . 2 4 Classes Destroyed 23 | . 5 3 2 1 2 1 . 5 2 1 1 . Worker 6 | . 1 3 . 1 . 1 . . . . . . Builder 3 | . . 2 . . . 1 . . . . . . Tunneler 5 | . . 1 . 1 . 2 . . . . 1 . Hauler 14 | . 1 . 3 . . . 4 5 . . 1 . Recycler 9 | . . . 1 . . 5 . 3 . . . . Mechanic 1 | . . . . . . . . 1 . . . . Operator 1 | . . . . . . . . 1 . . . . Drone 1 | . . . . . . . . . . 1 . . Turret 1 | . . . . . 1 . . . . . . . Watcher 3 | . 1 . . . . . . 2 . . . . Swarmer 48 | . 3 16 . 6 . 1 7 4 4 . . 7 Grunt 52 | . 2 2 . 2 . 4 6 12 9 . 10 5 Brawler 1 | . . . . . . . . 1 . . . . Duelist 5 | . . . . . . 2 1 2 . . . . Protector 1 | . . . . . . . . 1 . . . . Sentry 16 | . . . 2 . . . 1 4 8 . 1 . Demolisher 1 | . . 1 . . . . . . . . . . Hunter 4 | . . . . . . . . 1 . . 2 1 Programmer 4 | . . . . . . . . . 3 . 1 . Heavy 1 | . . . . . . . . . . . 1 . Behemoth 2 | . . . . . . . . . 1 . . 1 Zionite 6 | . . . . . 6 . . . . . . . Assembled 6 | . . . . 2 4 . . . . . . . Thug 2 | . . . . . . . . 1 1 . . . Best Kill Streak 9 | . 5 5 4 5 3 3 6 9 3 1 6 4 Combat Bots Only 6 | . 3 5 1 5 3 3 5 6 3 1 6 4 Max Kills in Single Turn 3 | . 2 3 1 2 2 1 1 3 1 1 1 3 Gunslinging 1 | . 1 1 . . . . . . . . . . Exploded 3 | . . 3 . 1 2 . . 3 1 . 1 3 Melee 1 | . . . . . 1 . . . . . . . Uniques/NPCs Destroyed 4 | . . . . . 4 . . . . . . . 8R-AWN (-9/Exiles) EX-HEX (-9/Exiles) EX-DEC (-9/Exiles) EX-BIN (-9/Exiles) Combat | -11 -10 -10 -9 -9 -9 -8 -8 -8 -8 -8 -6 -6 -------- Run | Scr Mat Min Mat Min Exi Min Mat Sto Gar Rec Fac Gar Damage Taken 10123 | . 183 559 96 816 1769 706 413 825 1191 . 1970 1595 Core 1765 | . 43 97 . 82 179 80 13 200 112 . 489 470 Absorbed by Shields 358 | . . . 37 74 113 . . . 38 . 68 28 Redirected to Shielding 57 | . . . . . 50 7 . . . . . . Regen/Repaired (Parts) 223 | . . . . . . . . 223 . . . . Core Remaining (%) 49 | 100 . 44 . . . 14 . . . 40 . . Volleys Fired 560 | . 12 44 11 37 76 53 48 74 106 6 53 40 Largest 2 | . 2 2 2 2 2 2 2 2 2 2 2 2 Hottest 180 | . 43 85 112 136 136 136 136 122 180 180 180 180 Shots Fired 1015 | . 24 86 18 57 140 109 86 141 200 12 88 54 Gun 613 | . 24 83 18 25 98 28 50 135 152 . . . Cannon 360 | . . . . 29 33 81 36 2 41 12 79 47 Launcher 25 | . . 3 . 3 . . . 4 7 . 5 3 Special 17 | . . . . . 9 . . . . . 4 4 Kinetic 461 | . 24 70 6 25 98 28 . 58 152 . . . Thermal 505 | . . 13 12 29 42 81 86 79 41 12 79 31 Explosive 6 | . . 3 . 3 . . . . . . . . Electromagnetic 35 | . . . . . . . . 4 7 . 5 19 Robot Hit Streak 41 | . 9 9 7 8 41 10 20 22 29 7 15 10 Robot Miss Streak 8 | . 6 4 1 8 5 4 1 2 2 4 2 2 Penetration Max 2 | . . . . . 2 . . . . . . . Secondary Targets 12 | . 2 1 . . . . 1 6 2 . . . Max Gunslinging Chain 1 | . 1 1 . . . . 1 1 1 . . . Shots Hit Robots 679 | . 17 49 14 29 101 66 67 96 130 4 72 34 Core Hits 327 | . 13 33 8 17 36 21 25 64 58 1 31 20 Critical Kills 8 | . . 1 . . 1 1 . 1 3 . 1 . Critical Parts Destroyed 14 | . . . . . 7 6 . . 1 . . . Critical Strikes 37 | . . 1 3 . 8 7 5 7 4 . 1 1 Burn 14 | . . . 3 . . . 5 6 . . . . Meltdown 3 | . . . . . . . . . 2 . 1 . Destroy 19 | . . 1 . . 8 7 . 1 2 . . . Corrupt 1 | . . . . . . . . . . . . 1 Melee Attacks 15 | . . . 1 3 4 . 6 1 . . . . Impact . | . . . . . . . . . . . . . Slashing 15 | . . . 1 3 4 . 6 1 . . . . Piercing . | . . . . . . . . . . . . . Sneak Attacks . | . . . . . . . . . . . . . Combat Hostiles . | . . . . . . . . . . . . . Follow-up Attacks 1 | . . . . . 1 . . . . . . . Damage Inflicted 16030 | . 266 661 211 727 2039 1366 1302 2724 3021 135 2199 1379 Guns 7055 | . 266 578 211 234 1235 221 659 1728 1923 . . . Cannons 6140 | . . . . 226 478 1145 636 . 553 111 1845 1146 Explosions 2657 | . . 83 . 219 227 . . 996 545 . 354 233 Melee 144 | . . . . 48 96 . . . . . . . Ramming 31 | . . . . . . . 7 . . 24 . . Kinetic 5043 | . 266 464 42 234 1235 221 . 658 1923 . . . Thermal 8333 | . . 114 169 226 708 1145 1295 1313 615 111 1915 722 Explosive 302 | . . 83 . 219 . . . . . . . . Electromagnetic 2177 | . . . . . . . . 753 483 . 284 657 Impact . | . . . . . . . . . . . . . Slashing 144 | . . . . 48 96 . . . . . . . Piercing . | . . . . . . . . . . . . . Highest Corruption 14 | . . . . 6 7 4 . . 2 2 . 14 Average Corruption 5 | . . . . 5 5 3 . . 1 2 . 13 Corruption Purged 7 | . . . . . 7 . . . . . . . Corruption Blocked . | . . . . . . . . . . . . . Effects 209 | . . . . 7 63 56 . . 18 19 . 46 Message Errors 65 | . . . . 3 15 17 . . 6 11 . 13 Matter Fused 45 | . . . . . 19 10 . . 2 1 . 13 Heat Flow Errors 19 | . . . . 1 7 6 . . 3 . . 2 Energy Discharges 20 | . . . . 1 4 7 . . . . . 8 Parts Rejected 4 | . . . . 1 . 1 . . 1 . . 1 Data Loss (minor) 26 | . . . . . 9 7 . . 3 2 . 5 Data Loss (major) 10 | . . . . . 2 3 . . 1 2 . 2 Misfires 8 | . . . . . 3 5 . . . . . . Alerts 9 | . . . . 1 3 . . . 2 3 . . Weapon Failures 3 | . . . . . 1 . . . . . . 2 Overload Shots . | . . . . . . . . . . . . . Overflow Damage 120 | . . . . 1 40 26 . . 5 . . 48 Projectiles 39 | . . . . 1 . 26 . . 5 . . 7 Explosions 81 | . . . . . 40 . . . . . . 41 Melee . | . . . . . . . . . . . . . Knockbacks . | . . . . . . . . . . . . . Impact . | . . . . . . . . . . . . . Kinetic . | . . . . . . . . . . . . . Secondary . | . . . . . . . . . . . . . Self-Inflicted Damage 350 | . . . . 13 42 . . 97 . . 114 84 Shots 11 | . . . . 2 1 . . 5 . . 1 2 Rammed 3 | . . . . . . . 1 . . 2 . . Targets Rammed 3 | . . . . . . . 1 . . 2 . . Kicked . | . . . . . . . . . . . . . Crushed . | . . . . . . . . . . . . . Highest Temperature 548 | . 21 112 162 299 246 240 144 15 309 228 348 548 Average Temperature 91 | . 12 29 59 102 71 56 42 7 85 94 146 139 Received Heat Transfer 2031 | . 57 60 38 192 . 153 144 261 469 . 351 306 Effects 7 | . . . . . . . . . 1 . 3 3 Shutdowns 2 | . . . . . . . . . . . . 2 Interference 2 | . . . . . . . . . . . 2 . Short Circuit 1 | . . . . . . . . . 1 . . . Damage (minor) 1 | . . . . . . . . . . . 1 . Damage (core) 1 | . . . . . . . . . . . . 1 Siege Activations 1 | . . . . . . . . . . . . 1 Total Turns 5 | . . . . . . . . . . . . 5 Longest Duration 5 | . . . . . . . . . . . . 5 Robots Corrupted 6 | . . . . . . . . . 3 . 1 2 Combat Hostiles 3 | . . . . . . . . . . . 1 2 Parts Fried 9 | . . . . . . . . 1 1 . 2 5 Impact Corruptions . | . . . . . . . . . . . . . Robots Melted 5 | . . . . . . . 1 . 2 . 2 . Combat Hostiles 4 | . . . . . . . . . 2 . 2 . Parts Melted 30 | . . . 3 . 1 1 3 8 2 . 11 1 Heat Transferred 14322 | . . 296 555 370 933 1801 2923 3101 850 148 2529 816 Parts Sabotaged . | . . . . . . . . . . . . . Parts Stolen . | . . . . . . . . . . . . . Parts Stripped . | . . . . . . . . . . . . . Power Chain Reactions 8 | . . . . . . . . 2 2 . 1 3 Missiles Intercepted . | . . . . . . . . . . . . . Alert | -11 -10 -10 -9 -9 -9 -8 -8 -8 -8 -8 -6 -6 ------- Run | Scr Mat Min Mat Min Exi Min Mat Sto Gar Rec Fac Gar Peak Influence 1847 | . 167 285 197 324 . 157 290 596 1847 926 1010 446 Initial 900 | . . 64 74 76 . . 5 48 315 831 900 292 Average 394 | . 59 142 132 138 . 20 90 338 1237 227 678 390 Maximum Alert Level 5 | . . 1 . 1 . . 1 2 5 3 3 2 Low Security (%) 49 | 100 100 69 100 86 . 100 92 20 . 53 . . Level 1 18 | . . 30 . 13 . . 7 41 1 27 14 52 Level 2 13 | . . . . . . . . 37 6 14 45 47 Level 3 6 | . . . . . . . . . 21 5 40 . Level 4 9 | . . . . . . . . . 49 . . . Level 5 3 | . . . . . . . . . 20 . . . High Security . | . . . . . . . . . . . . . Max Security . | . . . . . . . . . . . . . Squads Dispatched 12 | . . . . . . . 1 3 . . 8 . Investigation 3 | . . . . . . . . 1 . . 2 . Extermination 1 | . . . . . . . . . . . 1 . Reinforcement 4 | . . . . . . . 1 . . . 3 . Assault 2 | . . . . . . . . 2 . . . . Garrison 2 | . . . . . . . . . . . 2 . Intercept . | . . . . . . . . . . . . . Searches Triggered 1 | . . . . . . . . . . . 1 . Construction Impeded 1 | . . . . . . . . . . . 1 . Haulers Reinforced . | . . . . . . . . . . . . . Active Scanning Responses . | . . . . . . . . . . . . . Cargo Convoy Interrupts . | . . . . . . . . . . . . . Stealth | -11 -10 -10 -9 -9 -9 -8 -8 -8 -8 -8 -6 -6 --------- Run | Scr Mat Min Mat Min Exi Min Mat Sto Gar Rec Fac Gar Distress Signals 5 | . 1 . . . . . 1 2 . . 1 . Communications Jammed . | . . . . . . . . . . . . . Distress Signals . | . . . . . . . . . . . . . Times Spotted 295 | . 8 20 5 16 33 18 27 35 42 50 19 22 Peak Tracking Total 10 | . 4 5 3 3 9 5 4 10 6 5 5 5 Tactical Retreats 23 | . . 2 . 3 13 . 2 1 2 . . . Traps | -11 -10 -10 -9 -9 -9 -8 -8 -8 -8 -8 -6 -6 ------- Run | Scr Mat Min Mat Min Exi Min Mat Sto Gar Rec Fac Gar Traps Triggered 18 | . 1 . . . . . . 2 10 . . 5 Indirectly 2 | . . . . . . . . . 2 . . . Trap Hack Attempts . | . . . . . . . . . . . . . Triggered . | . . . . . . . . . . . . . Disarmed 7 | . 6 . . . . . . 1 . . . . Reprogrammed . | . . . . . . . . . . . . . Reused . | . . . . . . . . . . . . . Traps Extracted . | . . . . . . . . . . . . . Installed . | . . . . . . . . . . . . . Triggered . | . . . . . . . . . . . . . Exploded 3 | . . . . . 3 . . . . . . . Machines | -11 -10 -10 -9 -9 -9 -8 -8 -8 -8 -8 -6 -6 ---------- Run | Scr Mat Min Mat Min Exi Min Mat Sto Gar Rec Fac Gar Machines Disabled 26 | . . . . . 10 1 . 4 3 1 4 3 Max in Single Turn 2 | . . . . . 2 1 . 1 1 1 2 1 Garrison Relay 5 | . . . . . . . . . 3 . . 2 Machines Sabotaged . | . . . . . . . . . . . . . Overloaded Fab Kills . | . . . . . . . . . . . . . Hacking | -11 -10 -10 -9 -9 -9 -8 -8 -8 -8 -8 -6 -6 --------- Run | Scr Mat Min Mat Min Exi Min Mat Sto Gar Rec Fac Gar Machines Accessed 48 | . 6 1 2 . 2 . 4 12 4 13 2 2 Terminals 33 | . 6 . 2 . . . 4 9 4 6 . 2 Fabricators . | . . . . . . . . . . . . . Repair Stations 2 | . . . . . . . . 2 . . . . Recycling Units 7 | . . . . . . . . . . 7 . . Scanalyzers 1 | . . . . . . . . . . . 1 . Garrison Access 2 | . . . . . . . . 1 . . 1 . Total Hacks 102 | . 17 1 3 . 4 . 7 25 8 26 8 3 Successful 61 | . 8 1 2 . 4 . 4 13 3 18 6 2 Failed 40 | . 9 . 1 . . . 3 12 5 7 2 1 Catastrophic 6 | . 1 . . . . . 1 1 2 1 . . Database Lockouts 1 | . . . . . . . . . . 1 . . Manual 46 | . 11 . 1 . 1 . 1 11 . 19 2 . Terminals 75 | . 17 . 3 . . . 7 18 8 19 . 3 Fabricators . | . . . . . . . . . . . . . Repair Stations 6 | . . . . . . . . 6 . . . . Recycling Units 7 | . . . . . . . . . . 7 . . Scanalyzers 5 | . . . . . . . . . . . 5 . Garrison Access 4 | . . . . . . . . 1 . . 3 . Terminal Hacks 41 | . 8 1 2 . 4 . 4 7 3 10 . 2 Record 3 | . . . . . 3 . . . . . . . Part Schematic 2 | . 2 . . . . . . . . . . . Robot Analysis 3 | . . . . . . . . . . 3 . . Open Door 5 | . . 1 . . . . . 3 1 . . . Branch Access Points 3 | . 1 . 1 . . . 1 . . . . . Emergency Access Points 2 | . . . . . . . . . 1 . . 1 Terminal Index 1 | . . . . . . . 1 . . . . . Repair Station Index 1 | . . . . . . . . 1 . . . . Alert Level 1 | . . . . . . . . 1 . . . . Unreport Threat 8 | . . . . . . . 2 1 . 5 . . Locate Traps 1 | . 1 . . . . . . . . . . . Disarm Traps 2 | . 1 . . . . . . 1 . . . . Transport Status 1 | . 1 . . . . . . . . . . . Hauler Manifests 1 | . . . . . . . . . . 1 . . Zone Layout 4 | . 2 . 1 . . . . . . 1 . . Patrol Navigation 1 | . . . . . . . . . . . . 1 Security Stations 1 | . . . . . . . . . 1 . . . EX-Prototype ID Bank 1 | . . . . . 1 . . . . . . . Fabricator Hacks . | . . . . . . . . . . . . . Repair Station Hacks 3 | . . . . . . . . 3 . . . . Scan Component 2 | . . . . . . . . 2 . . . . Repair 1 | . . . . . . . . 1 . . . . Recycling Unit Hacks . | . . . . . . . . . . . . . Scanalyzer 5 | . . . . . . . . . . . 5 . Insert Component 3 | . . . . . . . . . . . 3 . Analyze 2 | . . . . . . . . . . . 2 . Garrison Access Hacks 2 | . . . . . . . . 1 . . 1 . Unlock Access 2 | . . . . . . . . 1 . . 1 . Unauthorized Hacks 10 | . . . . . . . . 2 . 8 . . Terminals 3 | . . . . . . . . 2 . 1 . . Botnet 3 | . . . . . . . . 2 . 1 . . Fabricators . | . . . . . . . . . . . . . Repair Stations . | . . . . . . . . . . . . . Recycling Units 7 | . . . . . . . . . . 7 . . Tunnel 7 | . . . . . . . . . . 7 . . Scanalyzers . | . . . . . . . . . . . . . Garrison Access . | . . . . . . . . . . . . . Data Cores Recovered 1 | . . . . . . . . 1 . . . . Used . | . . . . . . . . . . . . . Hacking Detections 29 | . 5 . 1 . . . 4 8 2 6 2 1 Full Trace Events 4 | . . . . . . . . 2 . . 2 . Feedback Events 1 | . . . . . . . . . . . 1 . Hackware Fried 1 | . . . . . . . . . . . 1 . Feedback Blocked . | . . . . . . . . . . . . . Robot Schematics Acquired . | . . . . . . . . . . . . . Robots Built . | . . . . . . . . . . . . . Authchips . | . . . . . . . . . . . . . Time . | . . . . . . . . . . . . . Total Robot Build Rating . | . . . . . . . . . . . . . Part Schematics Acquired 4 | . 2 . . . . . . . . . 2 . Parts Built . | . . . . . . . . . . . . . Authchips . | . . . . . . . . . . . . . Time . | . . . . . . . . . . . . . Total Part Build Rating . | . . . . . . . . . . . . . Parts Repaired 1 | . . . . . . . . 1 . . . . Time 28 | . . . . . . . . 28 . . . . Parts Recycled . | . . . . . . . . . . . . . Recycled Matter . | . . . . . . . . . . . . . Retrieved Matter . | . . . . . . . . . . . . . Retrieved Components . | . . . . . . . . . . . . . Parts Scanalyzed 2 | . . . . . . . . . . . 2 . Part Schematics Acquired 2 | . . . . . . . . . . . 2 . Parts Damaged 2 | . . . . . . . . . . . 2 . Bothacking | -11 -10 -10 -9 -9 -9 -8 -8 -8 -8 -8 -6 -6 ------------ Run | Scr Mat Min Mat Min Exi Min Mat Sto Gar Rec Fac Gar Used RIF Installer 2 | . . . . . . . . . 2 . . . Threat Obfuscator 1 | . . . . . . . . . 1 . . . Robots Hacked 5 | . . . . . . . . . . . 1 4 Non-combat 1 | . . . . . . . . . . . 1 . Combat 4 | . . . . . . . . . . . . 4 Robot Hacks Applied 8 | . . . . . . . . . . . 4 4 purge_threat 4 | . . . . . . . . . . . 4 . overwrite_iff 3 | . . . . . . . . . . . . 3 streamctrl_high 1 | . . . . . . . . . . . . 1 Relay Couplers Released 21 | . . . . . . . . . 13 . . 8 Machine Destruction 21 | . . . . . . . . . 13 . . 8 Attached 4 | . . . . . . . . . . . 2 2 Fabnet Peak Effective % . | . . . . . . . . . . . . . Robots Rewired . | . . . . . . . . . . . . . Allies Hacked . | . . . . . . . . . . . . . Hacks Repelled . | . . . . . . . . . . . . . Allies | -11 -10 -10 -9 -9 -9 -8 -8 -8 -8 -8 -6 -6 -------- Run | Scr Mat Min Mat Min Exi Min Mat Sto Gar Rec Fac Gar Total Allies 29 | . . . . . . 4 3 13 2 . . 7 Largest Group 11 | . . . . . . 2 1 11 10 . . 2 Highest-Rated Group 199 | . . . . . . 23 29 199 170 . . 148 Highest-Rated Ally 148 | . . . . . . 18 29 31 31 . . 148 Total Orders . | . . . . . . . . . . . . . Ally Attacks 217 | . . . . . . 27 18 24 111 . . 37 Total Damage 2722 | . . . . . . 209 162 392 1522 . . 437 Kills 31 | . . . . . . 3 2 6 18 . . 2 Allies Corrupted . | . . . . . . . . . . . . . Allies Melted . | . . . . . . . . . . . . . Intel | -11 -10 -10 -9 -9 -9 -8 -8 -8 -8 -8 -6 -6 ------- Run | Scr Mat Min Mat Min Exi Min Mat Sto Gar Rec Fac Gar Robot Analysis Total 3 | . . . . . . . . . . 3 . . Derelict Logs Recovered 1 | . . 1 . . . . . . . . . . Drone Launches 42 | . . . . . . 17 10 2 . . . 13 Drone Recoveries 36 | . . . . . . 16 10 1 . . . 9 Exploration | -11 -10 -10 -9 -9 -9 -8 -8 -8 -8 -8 -6 -6 ------------- Run | Scr Mat Min Mat Min Exi Min Mat Sto Gar Rec Fac Gar Turns Passed 15367 | 1 387 1453 302 426 3060 2323 695 1360 2274 1370 535 1181 Spaces Moved 5935 | 1 258 741 133 125 834 844 278 813 914 559 150 285 Core 2 | . . . . . . . . . . . . 2 Treads 3012 | . 28 . 14 125 659 819 207 . 465 559 136 . Legs 2121 | 1 99 158 33 . 175 25 71 813 449 . 14 283 Wheels 800 | . 131 583 86 . . . . . . . . . Hover . | . . . . . . . . . . . . . Flight . | . . . . . . . . . . . . . Fastest Speed 110 | 120 110 110 110 240 210 210 133 126 130 240 160 190 Average Speed 212 | 120 124 148 160 240 296 247 170 128 210 240 237 344 Slowest Speed 1300 | 120 240 260 260 240 640 490 240 133 320 240 400 1300 Overloaded Moves . | . . . . . . . . . . . . . Propulsion Burnouts . | . . . . . . . . . . . . . Robots Hopped . | . . . . . . . . . . . . . Cave-ins Triggered . | . . . . . . . . . . . . . Exploration Rate (%) 57 | 2 61 94 17 24 89 99 27 94 90 96 6 52 Regions Visited 12 Branch Regions 6 Pre-discovered Areas 8 | . . . . . 1 . . . . 7 . . Known Exits Taken 6 | . 1 1 1 . . . 1 1 . . 1 . Unknown Exits Taken 5 | 1 . . . 1 1 1 . . . 1 . . Scrap Searched 3 | . . 1 . 1 . 1 . . . . . . Spaces Dug 26 | . . . . . . . 3 10 . . . 13 Terrain Destroyed 126 | . . 16 . 27 12 12 3 12 1 5 25 13 Melee 4 | . . . . . . . 3 1 . . . . Projectile 27 | . . . . . 5 11 . 2 . 5 4 . AOE 94 | . . 16 . 27 7 . . 9 1 . 21 13 Terrain Rammed . | . . . . . . . . . . . . . Walls Destroyed . | . . . . . . . . . . . . . Machines Disabled . | . . . . . . . . . . . . . Actions | -11 -10 -10 -9 -9 -9 -8 -8 -8 -8 -8 -6 -6 --------- Run | Scr Mat Min Mat Min Exi Min Mat Sto Gar Rec Fac Gar Total 7715 | 2 300 1011 206 188 1265 972 402 1009 1129 573 236 422 Wait 691 | . 2 195 8 11 264 39 21 57 46 2 12 34 Move 5924 | . 257 740 132 124 833 843 277 812 913 558 150 285 Hop . | . . . . . . . . . . . . . Pick Up 120 | . 15 9 14 1 27 6 13 12 12 . 3 8 Fast Attach 74 | . 3 5 7 . 10 4 5 13 9 2 6 10 Attach 70 | . 2 5 5 6 19 3 5 5 9 . 6 5 Detach 20 | . . 2 1 1 7 2 1 4 1 . . 1 Swap 79 | . 2 7 8 4 6 17 9 8 4 1 5 8 Drop 122 | 2 7 4 19 1 20 5 16 23 18 2 1 4 Fire 560 | . 12 44 11 37 76 53 48 74 106 6 53 40 Melee 14 | . . . 1 3 3 . 6 1 . . . . Ram . | . . . . . . . . . . . . . Kick . | . . . . . . . . . . . . . Crush 3 | . . . . . . . 1 . . 2 . . Escape Stasis 38 | . . . . . . . . . 11 . . 27 Rewire . | . . . . . . . . . . . . . Trap . | . . . . . . . . . . . . . Miscellaneous . | . . . . . . . . . . . . . Route ------- -11/Scrapyard -10/Materials -10/Mines -9/Materials -9/Mines (discovered 2 exits: *Mat / *Exi) -9/Exiles -8/Mines (discovered 2 exits: *Mat x2) -8/Materials (discovered 2 exits: [*Fac] / *Sto) -8/Storage (discovered 2 exits: [*Fac] / Gar) -8/Garrison (discovered 3 exits: *Rec x3) -8/Recycling -6/Factory -6/Garrison (discovered 1 exit: [*Fac]) History --------- Turn | Location | Event 2 | -11/Scrapyard | Discovered new exit (range 0) 2 | -11/Scrapyard | Entered Materials 19 | -10/Materials | Identified exit to Mines 317 | -10/Materials | Build established: Mutant 389 | -10/Materials | Entered Mines 445 | -10/Mines | Assembled infested the area 450 | -10/Mines | Assisted by a Guerilla fighting off Assembled 1088 | -10/Mines | Identified exit to Materials 1274 | -10/Mines | Found the Drone Emporium 1280 | -10/Mines | Found Prototype Device 1314 | -10/Mines | Core integrity fell below 50% 1379 | -10/Mines | Build established: Scavenger-Mutant 1842 | -10/Mines | Entered Materials 1842 | -9/Materials | Evolved 2 slots: Utility x2 1942 | -9/Materials | Identified exit to Mines 2144 | -9/Materials | Entered Mines 2161 | -9/Mines | Discovered new exit (range 4) 2193 | -9/Mines | Build established: Mutant 2252 | -9/Mines | Excavation squad dispatched 2252 | -9/Mines | A large section of the Mines collapsed 2395 | -9/Mines | Lost 5 parts (1n3u1w) 2488 | -9/Mines | Identified Splice Drone Bay 2560 | -9/Mines | Deemed a non-threat by the Exiles lab entrance 2560 | -9/Mines | Discovered new exit (range 5) 2570 | -9/Mines | Entered Exiles 2637 | -9/Exiles | Met 8R-AWN 2671 | -9/Exiles | Met EX-HEX 2764 | -9/Exiles | Met EX-DEC 2810 | -9/Exiles | Learned location of Zion (-6) 3239 | -9/Exiles | Discovered new exit (range 14) 3429 | -9/Exiles | Met EX-BIN 3463 | -9/Exiles | Aligned with FarCom system 3465 | -9/Exiles | Given EX-Vault access code 3520 | -9/Exiles | Opened EX-Vault 3538 | -9/Exiles | Found Cloak of Protection 3549 | -9/Exiles | Found YOLO Cannon 3600 | -9/Exiles | Warned to stay clear of 0b10 Research branches 3715 | -9/Exiles | Attacked by the Exiles 3967 | -9/Exiles | Destroyed 8R-AWN 3990 | -9/Exiles | Lost 13 parts (1p3n5u4w) 3993 | -9/Exiles | Found Prototype Processor 4005 | -9/Exiles | Found Prototype Ballistic Gun 4188 | -9/Exiles | Core integrity fell below 50% 4337 | -9/Exiles | Build established: Hauler-Mutant 4434 | -9/Exiles | Identified 8R-AWN's Boregun 4936 | -9/Exiles | Destroyed EX-HEX 4954 | -9/Exiles | Destroyed EX-DEC 4996 | -9/Exiles | Destroyed EX-BIN 5015 | -9/Exiles | Found Prototype Device 5015 | -9/Exiles | Identified System Purifier 5321 | -9/Exiles | Build established: Scavenger-Mutant 5336 | -9/Exiles | Found Prototype Processor 5630 | -9/Exiles | Entered Mines 5631 | -8/Mines | Identified Exp. Targeting Computer 5633 | -8/Mines | ME-RLN came to Exiles' defense 5933 | -8/Mines | Core integrity fell below 20% 6233 | -8/Mines | Discovered new exit (range 11) 6473 | -8/Mines | Found Prototype Special Weapon 6479 | -8/Mines | Found Prototype Hackware 6484 | -8/Mines | Identified ME-RLN's Wand 6527 | -8/Mines | Found Prototype Hackware 6533 | -8/Mines | Found Prototype Device 6534 | -8/Mines | Identified Exp. Phase Shifter 6654 | -8/Mines | Discovered new exit (range 15) 7953 | -8/Mines | Entered Materials 7953 | -8/Materials | Evolved 2 slots: Propulsion x1, Utility x1 8360 | -8/Materials | Discovered new exit (range 4) 8391 | -8/Materials | Identified exit to Storage 8648 | -8/Materials | Entered Storage 9281 | -8/Storage | Discovered new exit (range 16) 9289 | -8/Storage | Met a pair of Derelict thieves 9649 | -8/Storage | Repaired Rnf. Fission Core 9824 | -8/Storage | Identified exit to Garrison 9909 | -8/Storage | Assisted by bots powering up and referring to "LRC-V3" 10008 | -8/Storage | Entered Garrison 10008 | -8/Garrison | Accompanied by 10 allies 10034 | -8/Garrison | Triggered checkpoint 10103 | -8/Garrison | Learned Recycling security intel 10110 | -8/Garrison | Garrison Relay disabled 10178 | -8/Garrison | Triggered checkpoint 10186 | -8/Garrison | Triggered checkpoint 10264 | -8/Garrison | Triggered checkpoint 10282 | -8/Garrison | Rescued a captive Derelict 10283 | -8/Garrison | Rescued a captive Derelict 10304 | -8/Garrison | Garrison Relay disabled 10360 | -8/Garrison | Discovered new exit (range 10) 10462 | -8/Garrison | Triggered checkpoint 10463 | -8/Garrison | Core integrity fell below 50% 10494 | -8/Garrison | Triggered checkpoint 11032 | -8/Garrison | Discovered new exit (range 10) 11126 | -8/Garrison | Triggered checkpoint 11201 | -8/Garrison | Garrison Relay disabled 11373 | -8/Garrison | Spotted B-75 Beast 11399 | -8/Garrison | Destroyed B-75 Beast 11564 | -8/Garrison | Discovered new exit (range 12) 11944 | -8/Garrison | Installed Relay Interface Framework 12128 | -8/Garrison | Triggered checkpoint 12179 | -8/Garrison | Expanded RIF knowledge: Threat Obfuscation 12282 | -8/Garrison | Entered Recycling 12308 | -8/Recycling | Spotter reported a threat 12326 | -8/Recycling | Spotter reported a threat 12352 | -8/Recycling | Identified System Mapper 12394 | -8/Recycling | Spotter reported a threat 12407 | -8/Recycling | Spotter reported a threat 12446 | -8/Recycling | Spotter reported a threat 12447 | -8/Recycling | Spotter reported a threat 12447 | -8/Recycling | Spotter reported a threat 12456 | -8/Recycling | Spotter reported a threat 12461 | -8/Recycling | Spotter reported a threat 12475 | -8/Recycling | Spotter reported a threat 12499 | -8/Recycling | Spotter reported a threat 12500 | -8/Recycling | Spotter reported a threat 12509 | -8/Recycling | Spotter reported a threat 12512 | -8/Recycling | Spotter reported a threat 12535 | -8/Recycling | Spotter reported a threat 12552 | -8/Recycling | Spotter reported a threat 12574 | -8/Recycling | Discovered new exit (range 15) 12576 | -8/Recycling | Spotter reported a threat 12607 | -8/Recycling | Spotter reported a threat 12688 | -8/Recycling | Spotter reported a threat 12689 | -8/Recycling | Spotter reported a threat 12696 | -8/Recycling | Spotter reported a threat 12698 | -8/Recycling | Spotter reported a threat 12718 | -8/Recycling | Spotter reported a threat 12741 | -8/Recycling | Spotter reported a threat 12753 | -8/Recycling | Spotter reported a threat 12789 | -8/Recycling | Spotter reported a threat 12795 | -8/Recycling | Spotter reported a threat 12815 | -8/Recycling | Spotter reported a threat 12830 | -8/Recycling | Spotter reported a threat 12833 | -8/Recycling | Spotter reported a threat 12842 | -8/Recycling | Spotter reported a threat 12848 | -8/Recycling | Spotter reported a threat 12865 | -8/Recycling | Spotter reported a threat 12868 | -8/Recycling | Spotter reported a threat 12881 | -8/Recycling | Spotter reported a threat 12883 | -8/Recycling | Spotter reported a threat 12918 | -8/Recycling | Spotter reported a threat 12934 | -8/Recycling | Spotter reported a threat 12967 | -8/Recycling | Spotter reported a threat 12971 | -8/Recycling | Spotter reported a threat 12987 | -8/Recycling | Spotter reported a threat 13025 | -8/Recycling | Spotter reported a threat 13071 | -8/Recycling | Spotter reported a threat 13102 | -8/Recycling | Spotter reported a threat 13124 | -8/Recycling | Spotter reported a threat 13178 | -8/Recycling | Spotter reported a threat 13180 | -8/Recycling | Spotter reported a threat 13186 | -8/Recycling | Spotter reported a threat 13218 | -8/Recycling | Spotter reported a threat 13223 | -8/Recycling | Spotter reported a threat 13227 | -8/Recycling | Spotter reported a threat 13243 | -8/Recycling | Spotter reported a threat 13281 | -8/Recycling | Spotter reported a threat 13296 | -8/Recycling | Spotter reported a threat 13318 | -8/Recycling | Spotter reported a threat 13321 | -8/Recycling | Spotter reported a threat 13350 | -8/Recycling | Spotter reported a threat 13357 | -8/Recycling | Spotter reported a threat 13407 | -8/Recycling | Spotter reported a threat 13460 | -8/Recycling | Spotter reported a threat 13513 | -8/Recycling | Spotter reported a threat 13526 | -8/Recycling | Spotter reported a threat 13570 | -8/Recycling | Spotter reported a threat 13630 | -8/Recycling | Spotter reported a threat 13652 | -8/Recycling | Entered Factory 13652 | -6/Factory | Evolved 4 slots: Power x1, Propulsion x1, Utility x2 13654 | -6/Factory | Identified Exp. Core Analyzer 13670 | -6/Factory | Found Scrap Engine 13714 | -6/Factory | Identified Ghost Barrier 14002 | -6/Factory | Search patrols dispatched 14014 | -6/Factory | Garrison activated, responded to threat 14091 | -6/Factory | Lost 6 parts (1p4n1u) 14100 | -6/Factory | Core integrity fell below 50% 14187 | -6/Factory | Identified exit to Garrison 14187 | -6/Factory | System Mapper fried by hacking feedback 14187 | -6/Factory | Entered Garrison 14248 | -6/Garrison | Lost 6 parts (1p2n3u) 14278 | -6/Garrison | Triggered checkpoint 14337 | -6/Garrison | System corruption reached 10% 14377 | -6/Garrison | Garrison Relay disabled 14530 | -6/Garrison | Triggered checkpoint 14573 | -6/Garrison | Core integrity fell below 20% 14574 | -6/Garrison | Triggered checkpoint 14614 | -6/Garrison | Lost 6 parts (1p2n2u1w) 14688 | -6/Garrison | Build established: Bothacker-Mutant 14806 | -6/Garrison | Discovered new exit (range 10) 14944 | -6/Garrison | Triggered checkpoint 15004 | -6/Garrison | Garrison Relay disabled 15194 | -6/Garrison | Triggered checkpoint 15314 | -6/Garrison | Spotted B-90 Cyclops 15323 | -6/Garrison | Spotted B-90 Cyclops 15345 | -6/Garrison | Destroyed B-90 Cyclops 15369 | -6/Garrison | Core destroyed Last Messages --------------- 15339_ Acquired Arm. Heavy Treads. 15340_ Splice Drone retrieved by Splice Drone Bay. 15342_ Destroyed Imp. Dynamic Insulation System. 15342_ B-90 Cyclops reactivates. 15345_ Splice Drone released from Splice Drone Bay. 15345_ B-90 Cyclops destroyed. 15346_ Splice Drone injecting B-90 Cyclops... Rewriting IFF filter. 15350_ Activated siege mode. 15352_ B-90 Cyclops exits siege mode. 15355_ Power failure, Lgt. Fission Core shutdown. 15357_ Network quickbooting B-90 Cyclops, ETC: 9. 15357_ Splice Drone retrieved by Splice Drone Bay. 15359_ Ended siege mode. 15366_ Power failure, Lgt. Angular Momentum Engine shutdown. 15366_ B-90 Cyclops reactivates. 15366_ Lgt. Fission Core destroyed. 15368_ KNU,XICQZXXU,YLE